bitfinex-derivatives/quotes_ETHF0:USTF0_20250627
["timestamp","ask_amount","ask_price","bid_price","bid_amount"]
[1751049246395,0.7646,2400.2,2400.1,32.718]
[1751049247103,1.59749,2400.2,2400.1,32.718]
[1751049247502,0.83295,2400.1,2399.9,0.83299]
[1751049247804,0.83295,2400.1,2400.0,32.717]
[1751049248104,0.83295,2400.1,2400.0,6.836]
[1751049248603,1.59752,2400.2,2400.0,33.55096]
[1751049248804,1.59752,2400.2,2400.0,32.718]
[1751049249298,3.2078,2400.3,2400.0,40.18043154]
[1751049249503,0.83293,2400.1,2400.0,32.718]
[1751049250198,8.1978,2400.3,2400.0,32.718]
[1751049250397,9.03066,2400.3,2400.1,0.8329]
[1751049250598,9.03066,2400.3,2400.2,25.882]
[1751049252306,0.83292,2400.1,2400.0,6.836]
[1751049252607,0.83292,2400.1,2400.0,32.717]
[1751049253509,0.83299,2399.9,2399.8,48.826]
[1751049253808,0.83299,2399.9,2399.8,81.54403]
[1751049253999,0.83299,2399.9,2399.8,48.82603]
[1751049254202,11.50322154,2399.9,2399.8,47.993]
[1751049254401,11.50322154,2399.9,2399.8,6.837]
[1751049254697,16.49322154,2399.9,2399.8,32.718]
[1751049254902,16.49322154,2399.9,2399.5,0.83312]
[1751049254903,0.83311,2399.6,2399.5,0.83312]
[1751049255103,4.04091,2399.6,2399.5,33.55112]
[1751049255298,4.04091,2399.6,2399.5,7.67012]
[1751049255504,4.04091,2399.6,2399.5,32.718]
[1751049256207,3.2078,2399.6,2399.5,33.55113]
[1751049256506,4.0409,2399.6,2399.5,33.55113]
[1751049256710,3.2078,2399.6,2399.5,33.55113]
[1751049257107,4.99,2399.9,2399.5,32.718]
[1751049257306,5.823,2399.9,2399.7,0.83305]
[1751049257512,4.99,2399.9,2399.8,26.71603]
[1751049258002,5.82299,2399.9,2399.8,25.883]
[1751049258912,4.99,2399.9,2399.8,26.71603]
[1751049259212,4.99,2399.9,2399.8,25.883]
[1751049259406,5.82299,2399.9,2399.8,25.883]
[1751049259708,4.04078,2400.0,2399.8,26.71602]
[1751049259907,4.04078,2400.0,2399.9,6.837]
[1751049260107,5.30141382,2400.0,2399.9,6.837]
[1751049262807,4.46843382,2400.0,2399.9,6.837]
[1751049263009,3.2078,2400.0,2399.9,6.837]
[1751049263513,4.04076,2400.0,2399.9,6.837]
[1751049263809,4.99,2400.1,2399.9,6.837]
[1751049263999,4.99,2400.1,2400.0,25.882]
[1751049264614,4.99,2400.1,2400.0,26.71496]
[1751049264912,4.99,2400.1,2400.0,25.882]
[1751049265114,5.82293,2400.1,2400.0,25.882]
[1751049265610,4.99,2400.1,2400.0,25.882]
[1751049265813,5.82293,2400.1,2400.0,25.882]
[1751049266015,4.99,2400.1,2400.0,26.71496]
[1751049266211,4.04067,2400.3,2400.0,27.51806]
[1751049266406,4.04067,2400.3,2400.1,0.83291]
[1751049266612,9.03067,2400.3,2400.2,25.881]
[1751049266912,9.45775652,2400.3,2400.2,25.881]
[1751049267209,10.29061652,2400.3,2400.2,25.881]
[1751049267404,11.71841652,2400.3,2400.2,25.881]
[1751049268408,9.45775652,2400.3,2400.2,26.71389]
[1751049268618,8.1978,2400.3,2400.2,26.71389]
[1751049268819,3.2078,2400.3,2400.2,26.71389]
[1751049270316,7.64428,2400.6,2400.4,0.83281]
[1751049270526,7.64428,2400.6,2400.5,32.716]
[1751049271618,6.8115,2400.6,2400.5,25.877]
[1751049271811,0.83287,2400.3,2400.1,0.8329]
[1751049272020,0.83287,2400.3,2400.2,32.714]
[1751049272820,0.83287,2400.3,2400.2,33.54689]
[1751049273025,0.83287,2400.3,2400.2,32.714]
[1751049273225,2.20017,2400.3,2400.2,32.714]
[1751049273425,2.20017,2400.3,2400.2,33.54689]
[1751049273923,7.19017,2400.3,2400.2,33.54689]
[1751049274223,10.39797,2400.3,2400.2,32.714]
[1751049274421,0.83293,2400.1,2400.0,47.989]
[1751049274621,0.83293,2400.1,2400.0,80.696]
[1751049274818,0.83293,2400.1,2400.0,54.82]
[1751049275014,0.83293,2400.1,2400.0,80.695]
[1751049276118,0.83293,2400.1,2400.0,48.82196]
[1751049276523,0.83293,2400.1,2400.0,47.989]
[1751049276716,0.83293,2400.1,2400.0,80.694]
[1751049277427,0.83293,2400.1,2400.0,47.989]
[1751049277627,0.83293,2400.1,2400.0,81.52596]
[1751049278328,10.39797,2400.3,2400.2,0.83289]
[1751049278520,0.83291,2400.2,2400.1,0.83292]
[1751049278721,0.83291,2400.2,2400.1,26.70592]
[1751049279225,0.83291,2400.2,2400.1,25.873]
[1751049279425,2.21621,2400.2,2400.1,25.873]
[1751049280220,2.21621,2400.2,2400.1,26.70593]
[1751049280723,2.21621,2400.2,2400.1,25.873]
[1751049280927,3.2078,2400.3,2400.2,0.83289]
[1751049281228,3.2078,2400.3,2400.1,26.7059]
[1751049281526,0.83289,2400.2,2400.1,25.873]
[1751049281718,0.83289,2400.2,2400.0,55.65294]
[1751049281719,0.83293,2400.1,2400.0,47.989]
[1751049282418,0.83293,2400.1,2400.0,54.82]
[1751049282626,1.62593,2400.1,2400.0,80.691]
[1751049282929,6.3283,2400.2,2400.0,80.691]
[1751049282930,6.3283,2400.2,2400.1,0.83293]
[1751049283224,0.83293,2400.1,2400.0,80.691]
[1751049284029,5.82293,2400.1,2400.0,80.691]
[1751049285726,2.08241,2400.0,2399.4,0.7351]
[1751049285926,4.0409,2399.6,2399.5,32.701]
[1751049286525,4.0409,2399.6,2399.5,6.831]
[1751049286829,4.0409,2399.6,2399.5,32.701]
[1751049288226,9.0309,2399.6,2399.5,32.701]
[1751049288632,9.0309,2399.6,2399.5,6.831]
[1751049288831,10.28179795,2399.6,2399.5,6.831]
[1751049289838,0.83331,2399.0,2398.9,40.8]
[1751049290033,0.83331,2399.0,2398.9,32.702]
[1751049290242,0.83326,2399.2,2398.9,32.702]
[1751049290436,0.83319,2399.4,2399.2,0.83324]
[1751049290633,0.83319,2399.4,2399.3,32.702]
[1751049293242,2.26539,2399.4,2399.3,32.702]
[1751049293437,7.25539,2399.4,2399.3,32.702]
[1751049293836,0.83334,2398.9,2398.8,47.987]
[1751049294037,0.83334,2398.9,2398.8,80.689]
[1751049294243,0.83332,2399.0,2398.8,81.52236]
[1751049294440,0.83332,2399.0,2398.9,25.87]
[1751049294839,1.469,2399.1,2398.6,0.7267]
[1751049295035,0.83341,2398.7,2398.6,1.56013]
[1751049295346,1.4635,2398.9,2398.6,74.2297]
[1751049295541,0.8334,2398.8,2398.6,75.06311]
[1751049295842,0.83341,2398.7,2398.6,33.4297]
[1751049296043,1.4635,2398.9,2398.6,33.4297]
[1751049296343,2.3023,2399.1,2398.9,0.83332]
[1751049296543,2.30227,2399.1,2399.0,32.704]
[1751049297142,3.77117,2399.1,2399.0,32.704]
[1751049298335,0.83341,2398.7,2398.6,0.7267]
[1751049298536,0.83341,2398.7,2398.6,32.703]
[1751049299540,0.8334,2398.8,2398.6,33.53644]
[1751049299742,2.2798,2398.8,2398.6,33.53644]
[1751049299939,4.99,2398.9,2398.8,0.83337]
[1751049300242,4.99,2398.9,2398.8,26.70537]
[1751049300836,4.99,2398.9,2398.8,34.16780154]
[1751049303139,0.83322,2399.3,2398.8,34.68283154]
[1751049303446,0.83322,2399.3,2399.1,0.83327]
[1751049303638,0.8332,2399.3,2399.2,32.705]
[1751049304245,4.041,2399.3,2399.2,32.705]
[1751049305641,4.99,2399.4,2399.2,32.705]
[1751049305851,4.99,2399.4,2399.3,0.8332]
[1751049306049,4.99,2399.4,2399.3,1.62]
[1751049306438,3.2078,2399.6,2399.3,0.7868]
[1751049306640,4.0409,2399.6,2399.4,26.70315]
[1751049307035,3.2078,2399.6,2399.5,0.83313]
[1751049308346,4.0409,2399.6,2399.4,26.70314]
[1751049308646,3.2078,2399.6,2399.5,0.83313]
[1751049308947,3.2078,2399.6,2399.4,26.70314]
[1751049309148,3.2078,2399.6,2399.5,0.83313]
[1751049309545,3.9491,2399.7,2399.6,0.8331]
[1751049309745,3.2078,2399.9,2399.8,0.83303]
[1751049309941,3.2078,2399.9,2399.8,26.70103]
[1751049310449,3.2078,2399.9,2399.8,27.48683]
[1751049312353,3.2078,2399.9,2399.8,26.6538]
[1751049312651,4.04079,2399.9,2399.8,26.6538]
[1751049314054,3.2078,2399.9,2399.8,32.686]
[1751049314248,4.04079,2399.9,2399.8,32.686]
[1751049314452,9.03079,2399.9,2399.8,32.686]
[1751049314756,0.8332,2399.3,2399.2,48.83723]
[1751049314951,0.8332,2399.3,2399.2,55.66123]
[1751049315146,0.8332,2399.3,2399.2,80.69]
[1751049315455,0.83319,2399.4,2399.2,81.52323]
[1751049315854,0.8332,2399.3,2399.2,80.69]
[1751049316552,0.8332,2399.3,2399.2,54.828]
[1751049316753,4.041,2399.3,2399.2,6.824]
[1751049316951,4.041,2399.3,2399.2,32.685]
[1751049317156,9.031,2399.3,2399.2,32.685]
[1751049317952,8.1978,2399.3,2398.6,3.9438]
[1751049318251,0.83344,2398.6,2398.5,47.999]
[1751049318458,0.83344,2398.6,2398.5,54.823]
[1751049318655,0.83344,2398.6,2398.5,80.683]
[1751049320056,0.83344,2398.6,2398.5,80.685]
[1751049320660,3.04364,2398.6,2398.5,80.685]
[1751049320958,3.82744,2398.6,2398.5,80.685]
[1751049321153,2.994,2398.6,2398.5,55.65748]
[1751049321462,3.82744,2398.6,2398.5,80.685]
[1751049321661,8.81744,2398.6,2398.5,80.685]
[1751049322163,4.99,2398.6,2398.5,88.98091154]
[1751049322461,3.2078,2399.0,2398.5,80.685]
[1751049322756,0.83344,2398.6,2398.5,47.999]
[1751049323061,0.83344,2398.6,2398.5,80.685]
[1751049323359,7.96444,2398.6,2398.5,80.685]
[1751049324155,7.131,2398.6,2398.5,32.686]
[1751049324364,4.99,2398.6,2398.5,32.686]
[1751049324562,3.2078,2398.7,2398.5,32.686]
[1751049324563,4.04123,2398.7,2398.5,33.51948]
[1751049324758,5.8234,2398.8,2398.6,0.83343]
[1751049325061,5.8234,2398.8,2398.7,25.861]
[1751049325259,4.99,2398.8,2398.7,25.861]
[1751049325467,3.2078,2399.1,2399.0,0.8333]
[1751049325765,3.2078,2399.1,2399.0,33.5193]
[1751049326158,1.0625,2399.3,2399.1,0.83324]
[1751049326353,1.8957,2399.3,2399.2,25.861]
[1751049326761,4.48247977,2399.3,2399.2,25.861]
[1751049327868,3.234,2399.3,2399.2,25.861]
[1751049328557,4.48283538,2399.3,2399.2,25.861]
[1751049330272,3.64963538,2399.3,2399.2,26.69423]
[1751049331168,1.54733538,2399.3,2399.2,26.69423]
[1751049331672,0.2985,2399.3,2399.2,26.69423]
[1751049334872,1.1317,2399.3,2399.2,25.861]
[1751049335763,1.1317,2399.3,2399.2,26.69423]
[1751049336164,1.1317,2399.3,2399.2,25.861]
[1751049336362,0.2985,2399.3,2399.2,26.69423]
[1751049337573,0.7216,2399.6,2399.5,0.83313]
[1751049337771,0.7216,2399.6,2399.5,33.50213]
[1751049337971,7.3007,2399.7,2399.6,0.83309]
[1751049338171,8.66214468,2399.7,2399.6,0.83309]
[1751049338373,8.66214468,2399.7,2399.5,32.669]
[1751049338374,8.66214468,2399.7,2399.5,33.5021]
[1751049338673,7.41446,2399.7,2399.5,33.5021]
[1751049338979,0.83309,2399.6,2399.5,32.669]
[1751049339276,0.83316,2399.4,2399.2,4.04102]
[1751049339476,0.83316,2399.4,2399.3,32.669]
[1751049340279,2.20306,2399.4,2399.3,32.669]
[1751049340568,2.89966,2399.4,2399.3,32.669]
[1751049340970,0.83337,2398.8,2398.7,48.007]
[1751049341273,0.83336,2398.9,2398.7,81.50541]
[1751049341476,3.2078,2399.0,2398.9,0.83334]
[1751049341665,3.2078,2399.0,2398.9,26.68334]
[1751049341868,3.2078,2399.0,2398.9,25.85]
[1751049342070,2.20318,2399.1,2398.9,26.68334]
[1751049342371,1.3699,2399.1,2398.9,26.68334]
[1751049342770,0.8333,2399.0,2398.9,25.85]
[1751049343373,2.2513,2399.0,2398.9,25.85]
[1751049343979,0.83337,2398.8,2398.7,54.822]
[1751049344169,0.83337,2398.8,2398.7,80.671]
[1751049346075,2.20317,2398.8,2398.7,80.671]
[1751049347077,4.9915,2398.9,2398.8,0.83337]
[1751049347268,4.0411,2399.0,2398.7,80.671]
[1751049347466,0.83335,2398.9,2398.7,80.671]
[1751049347669,0.83335,2398.9,2398.7,81.50438]
[1751049348080,4.29153,2399.0,2398.8,0.83337]
[1751049348282,4.29153,2399.0,2398.9,25.848]
[1751049349784,5.69173,2399.0,2398.9,25.848]
[1751049350278,3.4582,2399.0,2398.9,25.848]
[1751049350474,0.2504,2399.0,2398.9,26.68134]
[1751049351372,0.83326,2399.2,2399.0,0.8333]
[1751049351680,0.83323,2399.2,2399.1,32.662]
[1751049351877,4.04102,2399.3,2399.1,33.49527]
[1751049352385,0.83323,2399.2,2399.1,32.662]
[1751049353376,4.04102,2399.3,2399.1,33.49526]
[1751049353575,0.83323,2399.2,2399.1,32.662]
[1751049354180,2.97103,2399.2,2399.1,32.662]
[1751049355485,2.97103,2399.2,2399.1,33.49527]
[1751049355879,2.1378,2399.2,2399.1,33.49527]
[1751049356791,2.97103,2399.2,2399.1,33.49527]
[1751049356979,4.6201,2399.4,2399.3,0.8332]
[1751049357176,5.87135509,2399.4,2399.3,26.6752]
[1751049357378,5.87135509,2399.4,2399.3,25.842]
[1751049357581,6.70451509,2399.4,2399.3,25.842]
[1751049357786,0.83322,2399.3,2399.1,7.64925]
[1751049357975,1.3845,2399.3,2399.2,26.67523]
[1751049358289,3.46896177,2399.3,2399.2,25.842]
[1751049358484,3.40816177,2399.3,2399.2,25.842]
[1751049358783,4.6201,2399.4,2399.3,0.8332]
[1751049359087,3.9235,2399.4,2399.3,8.29563154]
[1751049359288,3.9802,2399.6,2399.5,0.83313]
[1751049359480,5.23180924,2399.6,2399.5,33.49013]
[1751049359886,2.02400924,2399.6,2399.5,33.49013]
[1751049360388,1.25160924,2399.6,2399.5,33.49013]
[1751049360587,1.25160924,2399.6,2399.5,32.657]
[1751049360780,3.46179924,2399.6,2399.5,32.657]
[1751049361494,3.46179924,2399.6,2399.5,33.49013]
[1751049361684,2.62870924,2399.6,2399.5,32.657]
[1751049361884,2.62870924,2399.6,2399.5,33.49013]
[1751049362083,3.46179924,2399.6,2399.5,32.657]
[1751049362593,3.46179924,2399.6,2399.5,33.49013]
[1751049362791,3.46179924,2399.6,2399.5,32.657]
[1751049363183,3.46179924,2399.6,2399.5,33.49013]
[1751049363382,2.62870924,2399.6,2399.5,33.49013]
[1751049363585,2.62870924,2399.6,2399.5,32.657]
[1751049363586,3.46179924,2399.6,2399.5,32.657]
[1751049364494,3.46179924,2399.6,2399.5,33.49013]
[1751049365388,1.3771,2399.6,2399.5,33.49013]
[1751049366496,2.21019,2399.6,2399.5,32.657]
[1751049367501,2.21019,2399.6,2399.5,33.49013]
[1751049368195,2.21019,2399.6,2399.5,32.657]
[1751049368587,2.21019,2399.6,2399.4,6.804]
[1751049368588,4.5849,2399.6,2399.4,6.804]
[1751049368795,0.83323,2399.2,2399.1,6.804]
[1751049368986,0.83323,2399.2,2399.1,32.635]
[1751049369187,0.83323,2399.2,2399.1,6.804]
[1751049369389,0.83323,2399.2,2399.1,32.635]
[1751049369590,2.19353,2399.2,2399.1,32.635]
[1751049370096,7.19353,2399.2,2399.1,32.635]
[1751049370489,2.19353,2399.2,2399.1,6.804]
[1751049370689,2.19353,2399.2,2399.1,32.635]
[1751049373000,2.19353,2399.2,2398.8,4.04116]
[1751049373001,0.83334,2398.9,2398.8,3.2078]
[1751049373187,0.83334,2398.9,2398.8,35.8408]
[1751049373789,0.83334,2398.9,2398.8,3.2078]
[1751049373990,0.83334,2398.9,2398.8,35.8408]
[1751049375700,0.83334,2398.9,2398.8,36.67417]
[1751049375899,0.83334,2398.9,2398.8,4.04117]
[1751049376101,0.83334,2398.9,2398.8,36.67417]
[1751049376302,0.83333,2399.0,2398.8,35.8408]
[1751049376501,1.3603,2399.2,2398.8,36.67416]
[1751049376800,1.3603,2399.2,2398.8,37.42435]
[1751049376992,0.83333,2399.0,2398.8,37.42435]
[1751049377195,0.83334,2398.9,2398.8,37.42435]
[1751049377404,0.83334,2398.9,2398.8,36.591]
[1751049377604,0.83334,2398.9,2398.8,35.8408]
[1751049377801,0.83334,2398.9,2398.8,35.8388]
[1751049378193,0.83334,2398.9,2398.8,10.0118]
[1751049378395,0.83334,2398.9,2398.8,35.8388]
[1751049378999,3.2078,2399.0,2398.5,0.7502]
[1751049379199,0.83365,2398.0,2397.7,3.2078]
[1751049379396,0.83372,2397.8,2397.7,10.0128]
[1751049379595,0.83372,2397.8,2397.7,35.8388]
[1751049379795,0.83372,2397.8,2397.7,32.631]
[1751049380000,2.22642,2397.9,2397.7,32.631]
[1751049380192,2.2264,2397.9,2397.7,32.631]
[1751049380793,0.83372,2397.8,2397.7,32.631]
[1751049381705,2.22642,2397.9,2397.7,32.631]
[1751049381894,1.3927,2397.9,2397.7,32.631]
[1751049382100,2.2264,2397.9,2397.7,32.631]
[1751049382602,2.2264,2397.9,2397.7,33.46475]
[1751049382802,1.3927,2397.9,2397.7,33.46475]
[1751049383105,0.83358,2398.2,2397.9,0.83369]
[1751049383309,0.83358,2398.2,2398.0,25.828]
[1751049383501,4.04135,2398.3,2398.0,25.828]
[1751049383699,0.83359,2398.2,2398.0,25.828]
[1751049383903,1.4586,2398.1,2398.0,25.828]
[1751049384109,8.1993,2398.3,2398.0,25.828]
[1751049384306,9.6579,2398.3,2398.0,25.828]
[1751049384503,0.83358,2398.2,2398.0,25.828]
[1751049384705,1.4586,2398.2,2398.0,26.66165]
[1751049385113,1.4586,2398.2,2398.0,25.828]
[1751049385317,8.1993,2398.3,2398.0,25.828]
[1751049385926,0.715,2398.2,2398.1,7.63962]
[1751049386114,0.715,2398.2,2398.1,33.46862]
[1751049386315,9.03286,2398.3,2398.1,32.635]
[1751049386515,10.36996,2398.3,2398.1,32.635]
[1751049387124,0.83358,2398.2,2398.1,32.635]
[1751049387829,10.36996,2398.3,2398.1,32.635]
[1751049388119,0.83358,2398.2,2398.1,32.635]
[1751049388321,2.24798,2398.2,2398.1,32.635]
[1751049388619,1.4144,2398.2,2397.8,6.806]
[1751049388822,0.83369,2397.9,2397.8,32.633]
[1751049389216,2.24809,2397.9,2397.8,32.633]
[1751049389714,1.4144,2397.9,2397.8,32.633]
[1751049389914,0.745,2398.1,2398.0,0.83365]
[1751049390122,1.57862,2398.1,2398.0,25.826]
[1751049390421,3.26002,2398.1,2398.0,25.826]
[1751049390824,0.83377,2397.7,2397.5,0.8338]
[1751049391021,0.83377,2397.7,2397.6,32.635]
[1751049391323,0.83377,2397.7,2397.6,33.46879]
[1751049392126,0.83378,2397.7,2397.5,0.8338]
[1751049392325,2.17428,2397.7,2397.6,32.634]
[1751049392624,7.16578,2397.7,2397.6,32.634]
[1751049392825,7.88118,2397.7,2397.6,32.634]
[1751049393025,7.88118,2397.7,2397.6,32.57326179]
[1751049393326,7.0474,2397.7,2397.6,33.40705179]
[1751049393722,7.88116,2397.7,2397.6,32.57326179]
[1751049393924,7.0474,2397.7,2397.6,33.40705179]
[1751049394519,7.0474,2397.7,2397.6,32.57326179]
[1751049394827,7.88116,2397.7,2397.6,6.74626179]
[1751049395022,7.88116,2397.7,2397.6,32.57226179]
[1751049395529,2.88966,2397.7,2397.6,32.57226179]
[1751049396028,7.0474,2397.7,2397.6,33.40605179]
[1751049396925,7.88116,2397.7,2397.6,32.57226179]
[1751049397728,7.88116,2397.7,2397.6,33.40605179]
[1751049397922,7.88116,2397.7,2397.5,0.83381]
[1751049398118,7.88116,2397.7,2397.6,6.795]
[1751049398327,0.83386,2397.4,2397.3,6.795]
[1751049398629,10.67023154,2397.4,2397.0,6.795]
[1751049398829,0.83397,2397.1,2397.0,6.795]
[1751049399026,4.04177,2397.1,2397.0,6.795]
[1751049399225,4.04177,2397.1,2397.0,32.619]
[1751049399426,3.2078,2397.1,2397.0,32.619]
[1751049399630,9.00927,2397.1,2397.0,32.619]
[1751049400331,9.00927,2397.1,2397.0,6.795]
[1751049400623,9.00927,2397.1,2397.0,32.621]
[1751049400831,8.1753,2397.1,2397.0,32.621]
[1751049401431,9.00927,2397.1,2397.0,32.621]
[1751049401938,8.1753,2397.1,2396.7,0.7367]
[1751049402231,8.1753,2397.1,2397.0,0.834]
[1751049402428,8.1753,2397.1,2397.0,26.659]
[1751049403019,4.9675,2397.1,2397.0,26.659]
[1751049403224,3.5978,2397.1,2397.0,26.659]
[1751049404333,3.2078,2397.5,2397.4,0.83386]
[1751049404531,3.2078,2397.5,2397.4,25.826]
[1751049404728,4.2026,2397.5,2397.4,26.65986]
[1751049404928,5.03643,2397.5,2397.4,25.826]
[1751049405227,0.83394,2397.2,2396.8,3.2078]
[1751049405532,0.83394,2397.2,2397.0,0.83398]
[1751049405733,0.83394,2397.2,2397.1,25.825]
[1751049406324,0.83398,2397.1,2397.0,6.796]
[1751049406532,0.83396,2397.2,2397.0,33.455]
[1751049406836,2.26117,2397.1,2397.0,33.455]
[1751049407038,2.26117,2397.1,2397.0,32.621]
[1751049407237,2.26117,2397.1,2397.0,6.796]
[1751049407436,2.26117,2397.1,2397.0,32.62]
[1751049407437,2.94547,2397.1,2397.0,32.62]
[1751049407739,0.6843,2397.1,2397.0,32.62]
[1751049408140,2.1115,2397.1,2397.0,33.454]
[1751049408439,0.7237,2397.4,2397.0,33.45398]
[1751049408639,0.83393,2397.2,2397.0,33.45398]
[1751049409035,0.83395,2397.2,2397.0,33.45398]
[1751049409540,0.83393,2397.3,2397.1,0.83397]
[1751049409844,0.83393,2397.3,2397.2,25.825]
[1751049411638,4.7641,2397.4,2396.8,4.5898]
[1751049411833,0.834,2397.0,2396.9,32.621]
[1751049413145,0.83404,2396.9,2396.8,3.2078]
[1751049413442,0.83404,2396.9,2396.8,32.62]
[1751049413644,0.83404,2396.9,2396.8,6.797]
[1751049413942,5.47764,2396.9,2396.8,32.62]
[1751049414243,10.46914,2396.9,2396.8,32.62]
[1751049415533,10.46914,2396.9,2396.8,6.797]
[1751049415734,10.46914,2396.9,2396.8,32.619]
[1751049415931,17.93157154,2396.9,2396.8,25.823]
[1751049416739,0.83411,2396.7,2396.6,6.797]
[1751049417041,0.83411,2396.7,2396.6,32.619]
[1751049417639,0.83411,2396.7,2396.2,44.0078]
[1751049417640,0.8343,2396.2,2396.1,0.8343]
[1751049417841,0.83426,2396.3,2396.2,0.83427]
[1751049418037,3.2078,2396.4,2396.1,32.619]
[1751049418233,0.83428,2396.2,2396.1,6.797]
[1751049418437,0.83428,2396.2,2396.1,32.62]
[1751049419646,0.83428,2396.2,2396.1,6.797]
[1751049419941,0.8346,2395.3,2395.2,6.798]
[1751049420141,0.8346,2395.3,2395.0,3.2078]
[1751049420142,0.8347,2395.0,2394.9,6.798]
[1751049420341,0.83477,2394.8,2394.7,29.0298]
[1751049420839,0.83477,2394.8,2394.1,6.798]
[1751049420840,0.83498,2394.2,2394.1,6.798]
[1751049421042,0.83515,2393.7,2393.6,5.81269722]
[1751049421240,0.83527,2393.4,2393.2,5.81269722]
[1751049421444,1.3667,2393.6,2393.2,13.27512876]
[1751049421646,8.1993,2394.0,2393.4,3.2078]
[1751049421849,0.835,2394.2,2393.7,3.2078]
[1751049422143,4.9915,2394.0,2393.8,40.14343154]
[1751049422447,4.5745,2394.3,2393.8,34.108]
[1751049422643,3.7124,2394.5,2394.0,0.0133]
[1751049422844,3.7124,2394.5,2394.1,3.2078]
[1751049423145,4.9915,2394.7,2394.4,3.2078]
[1751049423350,4.9915,2394.7,2394.6,0.83484]
[1751049423645,2.7862,2395.3,2394.6,49.34982164]
[1751049423847,2.0549,2395.3,2395.0,4.04248]
[1751049424049,2.0549,2395.3,2395.1,32.707]
[1751049424251,3.2078,2395.5,2395.2,0.83461]
[1751049424546,3.2078,2395.5,2395.4,0.83456]
[1751049424754,1.3467,2395.7,2395.4,33.54956]
[1751049424954,3.2078,2395.8,2395.6,0.83446]
[1751049425246,3.2078,2395.8,2395.7,32.732]
[1751049425451,3.2078,2395.8,2395.7,32.733]
[1751049425653,4.5545,2396.1,2395.9,0.83438]
[1751049425843,3.2078,2396.1,2396.0,32.737]
[1751049426546,3.2846,2396.1,2396.0,32.737]
[1751049426750,3.2846,2396.1,2396.0,33.58465]
[1751049426950,3.2078,2396.1,2396.0,32.7503]
[1751049427147,3.2078,2396.1,2396.0,0.0133]
[1751049427350,9.04212,2396.1,2396.0,0.0133]
[1751049427552,0.83439,2395.9,2395.3,4.04238]
[1751049427753,1.3452,2396.0,2395.6,0.83447]
[1751049428055,1.3452,2396.0,2395.7,25.952]
[1751049428250,1.3452,2396.0,2395.5,0.83452]
[1751049428454,1.3452,2396.0,2395.4,0.83454]
[1751049428656,3.2078,2395.8,2395.6,0.83448]
[1751049428856,3.2078,2395.8,2395.6,25.968]
[1751049429158,1.3452,2395.7,2395.4,32.832]
[1751049429452,4.9525,2395.7,2395.4,25.965]
[1751049429649,4.9525,2395.7,2395.4,26.79954]
[1751049429850,4.9525,2395.7,2395.5,0.83452]
[1751049430052,4.9525,2395.7,2395.4,25.965]
[1751049430247,4.9525,2395.7,2395.5,0.8345]
[1751049430648,1.3452,2395.7,2395.5,0.8345]
[1751049430848,3.2078,2396.1,2395.9,0.83437]
[1751049431147,6.458,2396.0,2395.9,25.976]
[1751049431345,6.458,2396.0,2395.8,7.7024]
[1751049431542,6.458,2396.0,2395.8,6.868]
[1751049431759,6.458,2396.0,2395.8,7.70241]
[1751049432049,4.99,2396.0,2395.9,0.83439]
[1751049432255,4.99,2396.0,2395.8,7.7024]
[1751049432446,4.99,2396.0,2395.8,6.868]
[1751049432845,4.99,2396.0,2395.8,7.7024]
[1751049433247,5.82437,2396.0,2395.8,6.868]
[1751049433548,4.99,2396.0,2395.8,6.868]
[1751049433749,4.99,2396.0,2395.9,0.83439]
[1751049434553,3.2078,2396.1,2395.8,8.4145]
[1751049435249,3.2078,2396.2,2395.9,40.8]
[1751049435550,1.4567,2396.1,2396.0,32.829]
[1751049435755,2.29102,2396.1,2396.0,32.829]
[1751049437558,2.29102,2396.1,2396.0,6.868]
[1751049437857,2.97162,2396.1,2396.0,32.815]
[1751049438157,2.1373,2396.1,2396.0,32.815]
[1751049438344,7.1273,2396.1,2396.0,32.815]
[1751049438549,7.96162,2396.1,2396.0,32.815]
[1751049438745,7.1273,2396.1,2396.0,32.815]
[1751049438951,7.96162,2396.1,2396.0,32.815]
[1751049439456,6.4467,2396.1,2396.0,32.815]
[1751049439862,7.28102,2396.1,2396.0,32.815]
[1751049440250,6.4467,2396.1,2396.0,32.815]
[1751049440457,7.28102,2396.1,2396.0,32.815]
[1751049440656,4.99,2396.1,2396.0,32.815]
[1751049440960,0.83422,2396.4,2396.1,0.83428]
[1751049441165,0.83425,2396.3,2396.2,25.943]
[1751049441756,2.19945,2396.3,2396.2,25.943]
[1751049442056,0.83446,2395.7,2395.6,0.6834]
[1751049442263,2.08582,2396.1,2395.6,33.4894]
[1751049442264,0.83439,2395.9,2395.6,33.4894]
[1751049442453,0.83449,2395.6,2395.5,3.2078]
[1751049442658,3.2078,2395.8,2395.5,6.867]
[1751049442961,2.22617,2395.7,2395.6,25.941]
[1751049444055,2.95897,2395.7,2395.6,25.941]